Cogmind - Beta 9.6 @@@ ROGUE MODE // 2020.06.23 @ 20:37:43 Player: Kenzurith Result: Destroyed by DAS Turret with DAS Cannon Performance ------------- Evolutions (1) 500 Regions Visited (5) 1000 Robots Destroyed (80) 400 Value Destroyed (1524) 1524 Prototype IDs (27) 540 Alien Tech Used (0) 0 Bonus (64) 64 TOTAL SCORE: 4028 Bonus ------- High Alert Combat Kills 34 Aligned with FarCom 300 Friendly Fire -270 Cogmind --------- Core Integrity 0/400 Matter 240/300 Energy 310/310 System Corruption 0% Temperature Cool (34) Movement Walking (150) Ox1 Location -9/Exiles Parts ------- > --- POWER (1) -------- Reinforced Fission Core > --- PROPULSION (2) --- Advanced Myomer Leg > --- UTILITY (4) ------ Large Storage Unit Large Storage Unit Improved Targeting Computer Advanced Weapon Cycler > --- WEAPON (2) ------- Rocket Launcher > --- INVENTORY (16) --- Aluminum Leg High-capacity Matter Pod (200) Guided Plasma Cannon Autogun Autogun AWS/Gauss 8R-AWN's Boregun 8R-AWN's Boregun Grenade Launcher Grenade Launcher Grenade Launcher Grenade Launcher Grenade Launcher Rocket Launcher Mining Claw Peak State ------------ > --- POWER ------------ Reinforced Fission Core > --- PROPULSION ------- Improved Treads Advanced Myomer Leg > --- UTILITY ---------- Large Storage Unit Large Storage Unit Improved Targeting Computer Advanced Weapon Cycler > --- WEAPON ----------- Autogun 8R-AWN's Boregun > --- INVENTORY -------- Aluminum Leg High-capacity Matter Pod Guided Plasma Cannon Autogun Autogun AWS/Gauss 8R-AWN's Boregun Grenade Launcher Grenade Launcher Grenade Launcher Grenade Launcher Grenade Launcher Rocket Launcher Rocket Launcher Mining Claw [Rating: 45] Favorites ----------- Power Heavy Ion Engine Engine Heavy Ion Engine Power Core Light Nuclear Core Propulsion Light Treads Treads Light Treads Leg Aluminum Leg Utility Large Storage Unit Device Advanced Weapon Cycler Storage Large Storage Unit Processor Improved Targeting Computer Protection Medium Armor Plating Weapon Autogun Energy Gun Medium Laser Ballistic Gun Autogun Launcher Grenade Launcher Slashing Weapon Mining Claw Build | -11 -10 -10 -9 -9 -9 ------- Run | Scr Mat Min Mat Min Exi Slots Evolved 2 | . . . 2 . . Power . | . . . . . . Propulsion . | . . . . . . Utility 2 | . . . 2 . . Weapon . | . . . . . . Parts Attached 65 | 6 13 . 21 7 18 Power 6 | 1 2 . 1 . 2 Engine 4 | 1 1 . 1 . 1 Core 2 | . 1 . . . 1 Reactor . | . . . . . . Propulsion 16 | 2 2 . 9 . 3 Treads 9 | 2 . . 5 . 2 Leg 7 | . 2 . 4 . 1 Wheel . | . . . . . . Hover . | . . . . . . Flight . | . . . . . . Utility 11 | 1 3 . 5 1 1 Device 2 | . 1 . . . 1 Storage 5 | 1 2 . 2 . . Processor 1 | . . . 1 . . Hackware . | . . . . . . Protection 3 | . . . 2 1 . Artifact . | . . . . . . Weapon 32 | 2 6 . 6 6 12 Energy Gun 3 | . 3 . . . . Energy Cannon . | . . . . . . Ballistic Gun 13 | 2 . . 3 3 5 Ballistic Cannon . | . . . . . . Launcher 11 | . 3 . 2 3 3 Special Weapon . | . . . . . . Impact Weapon . | . . . . . . Slashing Weapon 5 | . . . 1 . 4 Piercing Weapon . | . . . . . . Special Melee Weapon . | . . . . . . Unidentified Prototypes 3 | . . . 1 . 2 Parts Lost 16 | . 3 . 2 . 11 Power 2 | . . . . . 2 Propulsion 5 | . . . 1 . 4 Utility 1 | . . . . . 1 Weapon 8 | . 3 . 1 . 4 Highest Loss Streak 9 | . 2 . 2 . 9 Average Slot Usage (%) 95 | . 95 100 89 100 95 Engine 6 | . 2 . 9 11 8 Core 4 | . 11 14 1 . 1 Treads 13 | . 13 . 9 22 19 Leg 9 | . 14 28 10 . 1 Storage 22 | . 21 28 22 22 22 Processor 6 | . . . 7 11 11 Protection 5 | . . . 6 11 7 Energy Gun 1 | . 11 . . . . Ballistic Gun 13 | . 8 . 13 21 17 Launcher 7 | . 8 28 4 . . Slashing Weapon 1 | . . . 3 . 3 Naked Turns . | . . . . . . Heaviest Build 63 | 13 19 19 53 53 63 Greatest Support 43 | 40 40 20 43 40 40 Greatest Overweight (x) 2 | 1 . . 2 1 2 Average Overweight (x) . | . . . . 1 1 Largest Inventory Capacity 16 | 6 8 8 16 16 16 Average Capacity 11 | 5 7 8 9 16 16 Most Carried 16 | 6 8 8 16 16 16 Average Carried 11 | 2 5 8 9 15 15 Final Capacity 16 | 6 8 8 16 16 16 Final Carried 16 | 6 8 8 16 16 16 Class Distribution -------------------- 100% | Mutant Dominant Class ---------------- Mutant | -10/Materials Mutant | -10/Mines Mutant | -9/Materials Mutant | -9/Mines Mutant | -9/Exiles Resources | -11 -10 -10 -9 -9 -9 ----------- Run | Scr Mat Min Mat Min Exi Matter Collected 2093 | 227 451 338 678 238 161 Remotely . | . . . . . . Salvage Created 1822 | . 484 35 887 299 117 Parts 127 | . 28 8 58 29 4 Haulers Intercepted 3 | . 1 . 2 . . Recyclers Shooed 3 | . . . 3 . . Parts Field Recycled . | . . . . . . Retrieved Matter . | . . . . . . Parts Self-Destructed . | . . . . . . Prevented . | . . . . . . Kills | -11 -10 -10 -9 -9 -9 ------- Run | Scr Mat Min Mat Min Exi Combat Hostiles Destroyed 65 | . 13 9 26 9 8 Melee 2 | . . . 1 . 1 Guns 21 | . 7 . 9 5 . AOE 42 | . 6 9 16 4 7 Classes Destroyed 12 | . 4 2 5 1 . Worker 5 | . 2 . 1 2 . Builder 1 | . . 1 . . . Tunneler 2 | . . . 1 1 . Hauler 3 | . 1 . 2 . . Recycler 3 | . . . 3 . . Operator 1 | . . . 1 . . Swarmer 19 | . 3 3 11 2 . Grunt 26 | . 10 . 10 6 . Brawler 1 | . . . 1 . . Duelist 1 | . . . . 1 . Sentry 4 | . . . 4 . . Assembled 13 | . . 6 . . 7 Best Kill Streak 8 | . 4 6 8 3 7 Combat Bots Only 7 | . 3 5 6 3 7 Max Kills in Single Turn 3 | . 2 3 3 3 3 Gunslinging 1 | . . . . 1 . Exploded 3 | . 2 3 3 2 3 Melee 1 | . . . 1 . 1 Uniques/NPCs Destroyed 1 | . . . . . 1 8R-AWN (-9/Exiles) Combat | -11 -10 -10 -9 -9 -9 -------- Run | Scr Mat Min Mat Min Exi Damage Taken 3232 | . 694 155 562 186 1635 Core 548 | . 115 30 87 10 306 Absorbed by Shields . | . . . . . . Core Remaining (%) 71 | 100 . 42 . . . Volleys Fired 139 | . 56 9 51 15 8 Largest 2 | . 2 2 2 2 2 Hottest 90 | . 90 60 60 53 53 Shots Fired 237 | . 98 17 80 29 13 Gun 171 | . 91 . 52 22 6 Cannon . | . . . . . . Launcher 66 | . 7 17 28 7 7 Special . | . . . . . . Kinetic 147 | . 67 . 52 22 6 Thermal 24 | . 24 . . . . Explosive 66 | . 7 17 28 7 7 Electromagnetic . | . . . . . . Robot Hit Streak 16 | . 10 2 10 12 16 Robot Miss Streak 5 | . 5 1 2 1 . Penetration Max . | . . . . . . Secondary Targets 1 | . . . . 1 . Max Gunslinging Chain 1 | . . . . 1 . Shots Hit Robots 182 | . 64 1 52 18 47 Core Hits 149 | . 32 16 54 22 25 Critical Hits 2 | . 1 . 1 . . Critical Kills 1 | . . . 1 . . Critical Parts Destroyed 1 | . 1 . . . . Melee Attacks 65 | . . . 5 . 60 Impact . | . . . . . . Slashing 65 | . . . 5 . 60 Piercing . | . . . . . . Sneak Attacks 2 | . . . 1 . 1 Combat Hostiles . | . . . . . . Follow-up Attacks 6 | . . . . . 6 Damage Inflicted 6201 | . 1166 344 2333 770 1588 Guns 1640 | . 800 . 543 255 42 Cannons . | . . . . . . Explosions 3295 | . 366 344 1683 515 387 Melee 1266 | . . . 107 . 1159 Ramming . | . . . . . . Kinetic 1478 | . 638 . 543 255 42 Thermal 362 | . 162 . 200 . . Explosive 3095 | . 366 344 1483 515 387 Electromagnetic . | . . . . . . Impact . | . . . . . . Slashing 1266 | . . . 107 . 1159 Piercing . | . . . . . . Highest Corruption 2 | . 2 2 . . . Average Corruption 2 | . 2 2 . . . Corruption Purged . | . . . . . . Effects 8 | . 2 6 . . . Message Errors 3 | . 1 2 . . . Heat Flow Errors 2 | . . 2 . . . Energy Discharges 1 | . 1 . . . . Data Loss (minor) 2 | . . 2 . . . Overload Shots . | . . . . . . Overflow Damage 129 | . 3 . 123 2 1 Projectiles . | . . . . . . Explosions 102 | . 3 . 96 2 1 Melee 27 | . . . 27 . . Knockbacks . | . . . . . . Impact . | . . . . . . Kinetic . | . . . . . . Secondary . | . . . . . . Self-Inflicted Damage 207 | . 42 68 97 . . Shots 10 | . 2 4 4 . . Rammed . | . . . . . . Targets Rammed . | . . . . . . Kicked . | . . . . . . Crushed . | . . . . . . Highest Temperature 233 | . 109 233 22 33 34 Average Temperature 25 | . 35 48 7 12 14 Received Heat Transfer 543 | . 336 . 120 87 . Siege Activations . | . . . . . . Robots Corrupted . | . . . . . . Combat Hostiles . | . . . . . . Parts Fried . | . . . . . . Impact Corruptions . | . . . . . . Robots Melted . | . . . . . . Combat Hostiles . | . . . . . . Parts Melted 1 | . . . . 1 . Heat Transferred 619 | . 469 . 150 . . Parts Sabotaged . | . . . . . . Parts Stolen . | . . . . . . Parts Stripped . | . . . . . . Power Chain Reactions . | . . . . . . Missiles Intercepted . | . . . . . . Alert | -11 -10 -10 -9 -9 -9 ------- Run | Scr Mat Min Mat Min Exi Peak Influence 463 | . 257 142 463 250 . Average Influence 190 | . 142 71 345 151 . Maximum Alert Level 2 | . 1 . 2 1 . Low Security (%) 57 | 100 75 100 9 64 . Level 1 32 | . 24 . 59 35 . Level 2 9 | . . . 30 . . Level 3 . | . . . . . . Level 4 . | . . . . . . Level 5 . | . . . . . . High Security . | . . . . . . Max Security . | . . . . . . Squads Dispatched 6 | . 3 . 2 1 . Investigation . | . . . . . . Extermination . | . . . . . . Reinforcement 6 | . 3 . 2 1 . Assault . | . . . . . . Garrison . | . . . . . . Intercept . | . . . . . . Construction Impeded 1 | . . . . 1 . Haulers Reinforced . | . . . . . . Stealth | -11 -10 -10 -9 -9 -9 --------- Run | Scr Mat Min Mat Min Exi Distress Signals 6 | . 1 . 5 . . Communications Jammed . | . . . . . . Distress Signals . | . . . . . . Times Spotted 99 | . 22 9 45 15 8 Peak Tracking Total 9 | . 5 3 8 5 9 Tactical Retreats 7 | . . 1 4 1 1 Traps | -11 -10 -10 -9 -9 -9 ------- Run | Scr Mat Min Mat Min Exi Traps Triggered 1 | . 1 . . . . Indirectly . | . . . . . . Trap Hack Attempts . | . . . . . . Triggered . | . . . . . . Disarmed . | . . . . . . Reprogrammed . | . . . . . . Reused . | . . . . . . Traps Extracted . | . . . . . . Installed . | . . . . . . Triggered . | . . . . . . Machines | -11 -10 -10 -9 -9 -9 ---------- Run | Scr Mat Min Mat Min Exi Machines Disabled 9 | . 2 . 5 . 2 Max in Single Turn 2 | . 2 . 2 . 1 Machines Sabotaged . | . . . . . . Garrisons Compromised . | . . . . . . Overloaded Fab Kills . | . . . . . . Fab Network Shutdowns . | . . . . . . Hacking | -11 -10 -10 -9 -9 -9 --------- Run | Scr Mat Min Mat Min Exi Machines Accessed 5 | . 1 . 3 . 1 Terminals 4 | . 1 . 3 . . Fabricators . | . . . . . . Repair Stations . | . . . . . . Recycling Units . | . . . . . . Scanalyzers . | . . . . . . Garrison Access . | . . . . . . Total Hacks 10 | . 3 . 6 . 1 Successful 5 | . 2 . 2 . 1 Failed 5 | . 1 . 4 . . Catastrophic 1 | . . . 1 . . Database Lockouts . | . . . . . . Manual 10 | . 2 . 6 . 2 Terminals 9 | . 3 . 6 . . Fabricators . | . . . . . . Repair Stations . | . . . . . . Recycling Units . | . . . . . . Scanalyzers . | . . . . . . Garrison Access . | . . . . . . Terminal Hacks 3 | . 1 . 1 . 1 Prototype ID Bank 1 | . 1 . . . . Branch Access Points 1 | . . . 1 . . EX-Prototype ID Bank 1 | . . . . . 1 Fabricator Hacks . | . . . . . . Repair Station Hacks . | . . . . . . Recycling Unit Hacks . | . . . . . . Scanalyzer . | . . . . . . Garrison Access Hacks . | . . . . . . Unauthorized Hacks 2 | . 1 . 1 . . Terminals 2 | . 1 . 1 . . Botnet 2 | . 1 . 1 . . Fabricators . | . . . . . . Repair Stations . | . . . . . . Recycling Units . | . . . . . . Scanalyzers . | . . . . . . Garrison Access . | . . . . . . Data Cores Recovered . | . . . . . . Used . | . . . . . . Hacking Detections 4 | . 1 . 3 . . Full Trace Events . | . . . . . . Feedback Events . | . . . . . . Feedback Blocked . | . . . . . . Robot Schematics Acquired . | . . . . . . Robots Built . | . . . . . . Matter . | . . . . . . Time . | . . . . . . Total Robot Build Rating . | . . . . . . Part Schematics Acquired . | . . . . . . Parts Built . | . . . . . . Matter . | . . . . . . Time . | . . . . . . Total Part Build Rating . | . . . . . . Parts Repaired . | . . . . . . Time . | . . . . . . Parts Recycled . | . . . . . . Recycled Matter . | . . . . . . Retrieved Matter . | . . . . . . Retrieved Components . | . . . . . . Parts Scanalyzed . | . . . . . . Part Schematics Acquired . | . . . . . . Parts Damaged . | . . . . . . Bothacking | -11 -10 -10 -9 -9 -9 ------------ Run | Scr Mat Min Mat Min Exi Used RIF Installer . | . . . . . . Robots Hacked . | . . . . . . Non-combat . | . . . . . . Combat . | . . . . . . Robot Hacks Applied . | . . . . . . Relay Couplers Released . | . . . . . . Robots Rewired . | . . . . . . Allies Hacked . | . . . . . . Hacks Repelled . | . . . . . . Allies | -11 -10 -10 -9 -9 -9 -------- Run | Scr Mat Min Mat Min Exi Total Allies 4 | . . . . 4 . Largest Group 4 | . . . . 4 4 Highest-Rated Group 71 | . . . . 71 71 Highest-Rated Ally 31 | . . . . 31 31 Total Orders . | . . . . . . Ally Attacks 17 | . . . . . 17 Total Damage 198 | . . . . . 198 Kills . | . . . . . . Allies Corrupted 1 | . . . . . 1 Allies Melted . | . . . . . . Intel | -11 -10 -10 -9 -9 -9 ------- Run | Scr Mat Min Mat Min Exi Robot Analysis Total . | . . . . . . Derelict Logs Recovered 2 | . . . . 2 . Drone Launches . | . . . . . . Drone Recoveries . | . . . . . . Exploration | -11 -10 -10 -9 -9 -9 ------------- Run | Scr Mat Min Mat Min Exi Turns Passed 4781 | 97 716 749 1172 1051 996 Spaces Moved 2286 | 59 398 256 596 548 429 Core 11 | 11 . . . . . Treads 1398 | 48 105 . 334 548 363 Legs 877 | . 293 256 262 . 66 Wheels . | . . . . . . Hover . | . . . . . . Flight . | . . . . . . Fastest Speed 50 | 50 120 120 120 180 180 Average Speed 159 | 141 130 120 162 180 180 Slowest Speed 200 | 160 160 120 180 180 200 Overloaded Moves . | . . . . . . Propulsion Burnouts . | . . . . . . Robots Hopped . | . . . . . . Cave-ins Triggered . | . . . . . . Exploration Rate (%) 52 | 4 66 50 54 94 48 Regions Visited 5 Branch Regions 3 Pre-discovered Areas 2 | . . . . 2 . Known Exits Taken 1 | . . . 1 . . Unknown Exits Taken 4 | 1 1 1 . 1 . Scrap Searched 2 | . . 1 . 1 . Spaces Dug . | . . . . . . Terrain Destroyed 328 | . 34 91 154 44 5 Melee . | . . . . . . Projectile . | . . . . . . AOE 328 | . 34 91 154 44 5 Actions | -11 -10 -10 -9 -9 -9 --------- Run | Scr Mat Min Mat Min Exi Total 3095 | 70 499 681 723 589 533 Wait 474 | . 12 417 18 12 15 Move 2281 | 58 397 255 595 547 429 Hop . | . . . . . . Pick Up 39 | 6 9 . 14 4 6 Fast Attach 22 | 6 4 . 8 . 4 Attach 13 | . 5 . 1 1 6 Detach 5 | . 3 . 1 . 1 Swap 30 | . 4 . 12 6 8 Drop 33 | . 9 . 18 4 2 Fire 139 | . 56 9 51 15 8 Melee 59 | . . . 5 . 54 Ram . | . . . . . . Kick . | . . . . . . Crush . | . . . . . . Escape Stasis . | . . . . . . Rewire . | . . . . . . Trap . | . . . . . . Miscellaneous . | . . . . . . Route ------- -11/Scrapyard -10/Materials (discovered 3 exits: *Mat x2 / [*Min]) -10/Mines -9/Materials (discovered 2 exits: [*Mat] / *Min) -9/Mines (discovered 3 exits: [*Mat x2] / *Exi) -9/Exiles History --------- Turn | Location | Event 6 | -11/Scrapyard | Discovered new exit (range 15) 98 | -11/Scrapyard | Entered Materials 300 | -10/Materials | Build established: Mutant 405 | -10/Materials | Discovered new exit (range 13) 528 | -10/Materials | Discovered new exit (range 16) 796 | -10/Materials | Discovered new exit (range 12) 814 | -10/Materials | Entered Mines 876 | -10/Mines | Discovered new exit (range 8) 1038 | -10/Mines | Assembled infested the area 1486 | -10/Mines | Core integrity fell below 50% 1563 | -10/Mines | Entered Materials 1563 | -9/Materials | Evolved 2 slots: Utility x2 1950 | -9/Materials | Discovered new exit (range 16) 2279 | -9/Materials | Discovered new exit (range 8) 2297 | -9/Materials | Identified exit to Mines 2735 | -9/Materials | Entered Mines 2781 | -9/Mines | Met a Derelict bent on vengeance 2840 | -9/Mines | A weapon hastily lodged in a ceiling crevice suddenly fell to the ground 2892 | -9/Mines | Learned 2 Materials zone layouts 3366 | -9/Mines | Learned location of Storage (-8) 3378 | -9/Mines | Discovered new exit (range 7) 3517 | -9/Mines | Escorted by a lone wolf Derelict 3550 | -9/Mines | Discovered new exit (range 5) 3568 | -9/Mines | Received a Rocket Launcher from a helpful Derelict 3632 | -9/Mines | Assisted by bots powering up and referring to "LRC-V3" 3767 | -9/Mines | Deemed a non-threat by the Exiles lab entrance 3767 | -9/Mines | Discovered new exit (range 5) 3786 | -9/Mines | Entered Exiles 3786 | -9/Exiles | Accompanied by 4 allies 3831 | -9/Exiles | Met 8R-AWN 3860 | -9/Exiles | Met EX-HEX 3916 | -9/Exiles | Met EX-BIN 3938 | -9/Exiles | Aligned with FarCom system 3939 | -9/Exiles | Given EX-Vault access code 3981 | -9/Exiles | Opened EX-Vault 4051 | -9/Exiles | Warned to stay clear of 0b10 Research branches 4122 | -9/Exiles | Found AWS/Gauss 4392 | -9/Exiles | Attacked by the Exiles 4444 | -9/Exiles | Destroyed 7 combat bots 4525 | -9/Exiles | Core integrity fell below 50% 4593 | -9/Exiles | Lost 9 parts (2p3n1u3w) 4633 | -9/Exiles | Destroyed 8R-AWN 4643 | -9/Exiles | Found Prototype Ballistic Gun 4643 | -9/Exiles | Identified 8R-AWN's Boregun 4655 | -9/Exiles | Found 8R-AWN's Boregun 4676 | -9/Exiles | Found Gui. Plasma Cannon 4775 | -9/Exiles | Core integrity fell below 20% 4782 | -9/Exiles | Destroyed by DAS Turret with DAS Cannon Last Messages --------------- 04566_ HV Slug penetrates HEX's Workstation. 04566_ HV Slug penetrates Wall. 04570_ Penetrated by HV Slug. 04573_ Prototype Ballistic Gun severed. 04574_ Penetrated by HV Slug. 04633_ 8R-AWN destroyed. 04636_ Acquired 113 matter. 04639_ Acquired Adv. Weapon Cycler. 04643_ Acquired Prototype Ballistic Gun. 04643_ Identified 8R-AWN's Boregun. 04647_ Acquired Rnf. Fission Core. 04650_ Acquired Prototype Leg. 04650_ Identified Adv. Myomer Leg. 04655_ Acquired 8R-AWN's Boregun. 04676_ Acquired Gui. Plasma Cannon. 04686_ Acquired Grenade Launcher. 04742_ Acquired Aluminum Leg. 04752_ Acquired 48 matter. 04766_ Imp. Treads destroyed. 04778_ Autogun destroyed. Map ----- +----------------------------------------------------+ | ?????????????????????????#" #?????# #?? | | ?????????????????????????#" ## #??????# #? | | ?????????????????????????#""""""?# #?#######"# | | ?????????????????????????##"###??# #?#"""""""" | | ?????????????????????????? ??????# #?#"""""""# | | ?????????????????????????????????# #?#"""""""# | | ????????????????????????????????## ###"" """"# | | ????????????????????????????????#" """"# | | ????????????????????????????????#" """# | | ????????????????????????????????#" """# | | ????????????????????????????????#" """# | | ????????????????????????????????#" """# | | ????????????????????????????????#" """# | | ????????????????????????????????## """" | | ?????????????????????????????????# = """# | | ?????????????????????????????????# "X" """" | | ?????????????????????????????????#" "" # | | ?????????????????? ??????????????#" """""""# | | ???????????????????"????????????##" # ######## | | ???????????????????# ??????????##" ####??????? | | ?????????????????#?# ##??######"" #?????????? | | ???????????""#####X# #"###""""""" ##????????? | | ??????????? *%! """""" " "" ##???##### | | ?????????? = "" """ " #####"""" | | ?????????? " " "" | | ?????????? @ "" | | ?????????? " | | ?????????? | | ??????????? | | ???????????# | | ???????????? """""" | | ???????????? ######""" | | ???????????? ""##????#####""" | | ????????????? """##?????????##""" | | ????????????? """##???????????#"""" | | ?????????????? ""#????????????#"" | | ?????????????? ???????????????"""" | | ???????????????? ??????????????" | | ?????????????????? ????????????" | | ????????????????????? ??????????????? | | ?????????????????????????????????????? | | ????????????????????????????????????? " | | ????????????????????????????????????? "" " | | ?????????????????????????????????????#?""" " " "" | | ?????????????????????????????????????????##""" """ | | ??????????????????????????????????????????###"""?? | | ?????????????????????????????????????????????##??? | | ?????????????????????????????????????????????????? | | ?????????????????????????????????????????????????? | | ?????????????????????????????????????????????????? | +----------------------------------------------------+ Best States ------------- Heat Dissipation 35 Energy Generation 19 Energy Capacity 310 Matter Stores 300 Matter Capacity 300 Sight Range 16 Terrain Scan Density 10 Armor Coverage 225 Weapon Cycling 25 Evasion (%) 40 Targeting Accuracy 6 Recoil Reduction 2 Item Schematics ----------------- None Robot Schematics ------------------ None Fabricated ------------ Nothing Alien Tech Used ----------------- None Achievements -------------- None Challenges ------------ None Game ------ Seed MakeshiftSmallFemtoactuators Manual? 0 Play Time 00:40:05 Cumulative 155.3 hours Start 2020.06.23 @ 18:35:09 End 2020.06.23 @ 20:37:43 Sessions 1 Manual Loads 0 Difficulty Rogue Special Mode None Game No. 84 Rogue 82 Adventurer 1 Explorer 1 Win Type - Total 2 Types 2/0/0/0/0/0/0 Lore% 58 Gallery% 71 Achievement% 53 Wizard Run 0 Options --------- ASCII 0 Keyboard 1 Movement Numpad Keybinds 0 Fullscreen 2 Font 24/Terminus Map View 76x50 Tactical HUD 1 Map Filters NONE Filters NONE Steam 1 RUN: bc59394c-9b05-4e78-9983-517015408ecb